bitfinex/quotes_ETHUSD_20250605
["timestamp","ask_amount","ask_price","bid_price","bid_amount"]
[1749140872059,3.8968124,2566.2,2566.1,10.541]
[1749140872593,0.02,2566.9,2566.8,4.71100151]
[1749140872762,0.02,2566.9,2566.8,29.97900151]
[1749140874665,0.02,2566.9,2566.8,16.8151]
[1749140874849,0.02,2566.9,2566.8,29.97800151]
[1749140875273,0.02,2566.9,2566.8,33.36541695]
[1749140875474,0.02,2566.9,2566.8,29.46951544]
[1749140875674,0.02,2566.9,2566.8,33.36541695]
[1749140875866,0.02,2566.9,2566.8,29.46851544]
[1749140876063,0.02,2566.9,2566.8,33.36441695]
[1749140876253,0.02,2566.9,2566.8,29.46851544]
[1749140877188,0.02,2566.9,2566.8,33.36441695]
[1749140877369,0.02,2566.9,2566.8,29.46851544]
[1749140877567,0.02,2567.9,2567.1,1.3261]
[1749140877778,0.02,2567.9,2567.2,26.39761]
[1749140878089,0.02,2567.9,2567.5,16.0]
[1749140878290,0.02,2567.9,2567.5,3.89470568]
[1749140878454,0.02,2567.9,2567.5,19.89473122]
[1749140878653,0.02,2567.9,2567.7,16.0]
[1749140878856,0.02,2567.9,2567.7,3.89451541]
[1749140879093,3.89472861,2567.6,2567.2,3.26161]
[1749140879296,3.89478513,2567.6,2567.2,2.129]
[1749140879596,3.89475529,2567.6,2567.2,2.129]
[1749140879770,3.89475529,2567.6,2567.2,18.129]
[1749140879970,3.89443431,2567.8,2567.2,2.129]
[1749140880172,0.42232343,2567.8,2567.2,2.129]
[1749140880373,0.02,2567.9,2567.4,3.89486608]
[1749140880700,0.02,2567.9,2567.3,11.02913288]
[1749140880860,0.02,2567.9,2567.6,3.89461938]
[1749140881060,3.9142475,2567.9,2567.4,16.0]
[1749140881263,0.02,2567.9,2567.4,19.89496981]
[1749140881893,3.91423919,2567.9,2567.4,16.0]
[1749140882096,3.89453596,2567.7,2567.2,18.129]
[1749140882305,3.89439197,2567.8,2567.3,7.132]
[1749140882461,3.91427305,2567.9,2567.3,7.132]
[1749140882658,0.02,2567.9,2567.3,7.132]
[1749140882978,0.02,2567.9,2567.5,3.89481827]
[1749140883299,0.02,2567.9,2567.4,3.89493352]
[1749140883501,3.91424461,2567.9,2567.3,7.132]
[1749140883696,3.91424361,2567.9,2567.3,14.02033637]
[1749140884075,3.91424361,2567.9,2567.4,3.89497745]
[1749140884412,3.91424361,2567.9,2567.3,10.12523877]
[1749140884579,0.02,2567.9,2567.5,3.89481287]
[1749140884757,0.02,2567.9,2567.6,3.89467953]
[1749140885090,0.02,2567.9,2567.8,19.89438429]
[1749140885257,0.02,2567.9,2567.8,35.67444304]
[1749140885596,0.02,2567.9,2567.8,36.50274304]
[1749140886404,0.02,2567.9,2567.8,37.05274304]
[1749140887488,0.02,2567.9,2567.8,37.44664704]
[1749140887662,0.02,2567.9,2567.8,41.28888476]
[1749140888017,0.02,2567.9,2567.8,2.9443]
[1749140888311,0.02,2567.9,2567.8,22.83868429]
[1749140890275,0.02,2567.9,2567.8,30.35785488]
[1749140890610,0.02,2567.9,2567.8,17.22047059]
[1749140890823,0.02,2567.9,2567.8,16.8283]
[1749140890968,0.02,2567.9,2567.8,22.01038429]
[1749140891303,0.02,2567.9,2567.8,18.116]
[1749140891467,0.02,2567.9,2567.8,2.116]
[1749140894111,3.91429921,2567.9,2567.8,2.116]
[1749140894426,4.69513765,2567.9,2567.8,2.116]
[1749140894975,0.02,2567.9,2567.8,6.01038429]
[1749140895396,0.02,2567.9,2567.8,2.116]
[1749140896831,3.89438429,2567.8,2567.7,16.0]
[1749140896973,3.89438429,2567.8,2567.7,2.116]
[1749140897543,4.67524743,2567.8,2567.7,2.116]
[1749140897746,0.3088,2567.7,2566.6,0.827]
[1749140898047,3.89567205,2567.0,2566.9,2.116]
[1749140898265,3.89584973,2566.9,2566.7,2.116]
[1749140898564,3.89586168,2566.9,2566.7,2.116]
[1749140898767,3.89590151,2566.8,2566.7,2.116]
[1749140906889,3.89590151,2566.8,2564.0,2.8833]
[1749140906890,34.44817955,2565.3,2564.0,2.8833]
[1749140907027,50.44833151,2565.2,2564.0,2.8833]
[1749140907233,3.8998518,2564.2,2564.0,2.117]
[1749140907844,11.3276518,2564.2,2563.6,2.117]
[1749140908071,11.8776518,2564.2,2563.5,2.117]
[1749140908372,11.8776518,2564.2,2563.2,8.411]
[1749140908558,11.8776518,2564.2,2563.6,2.118]
[1749140908871,12.27553856,2564.2,2563.6,2.118]
[1749140909042,59.0564017,2564.2,2563.6,2.118]
[1749140909228,58.65851494,2564.2,2563.3,2.118]
[1749140909438,3.90137328,2563.2,2563.1,0.02]
[1749140911260,4.45137328,2563.2,2563.1,0.02]
[1749140912553,20.45137328,2563.2,2563.1,0.02]
[1749140912770,23.40879085,2563.2,2563.1,0.02]
[1749140914195,30.53079085,2563.2,2563.1,0.02]
[1749140914695,23.40879085,2563.2,2563.1,0.02]
[1749140914893,3.90137328,2563.2,2563.1,0.02]
[1749140915098,0.3088,2563.9,2563.1,2.129]
[1749140915271,3.90084714,2563.6,2563.1,2.129]
[1749140915468,0.3088,2563.9,2563.1,2.129]
[1749140915668,3.90081061,2563.6,2563.1,2.129]
[1749140915994,0.3088,2563.9,2563.1,2.129]
[1749140916195,3.90103818,2563.5,2563.1,2.129]
[1749140916395,3.90122549,2563.3,2563.2,2.109]
[1749140916618,3.90122549,2563.3,2563.1,0.02]
[1749140916619,3.90137328,2563.2,2563.1,2.129]
[1749140917093,3.90137328,2563.2,2563.1,0.02]
[1749140917094,4.76017328,2563.2,2563.1,0.02]
[1749140919396,13.41023203,2563.2,2563.1,0.02]
[1749140919697,41.88217328,2563.2,2563.1,0.02]
[1749140919866,57.88217328,2563.2,2563.1,0.02]
[1749140921396,3.90137328,2563.2,2563.1,0.02]
[1749140921795,0.3088,2563.6,2563.1,0.02]
[1749140921984,3.90105194,2563.5,2563.2,2.11]
[1749140922310,3.90099219,2563.5,2563.2,2.9318]
[1749140922597,3.90114487,2563.4,2563.2,2.9318]
[1749140922794,3.90114487,2563.4,2563.3,2.11]
[1749140922996,3.90122108,2563.3,2563.1,0.02]
[1749140923196,3.90106889,2563.4,2563.3,2.11]
[1749140924234,3.90106889,2563.4,2563.1,0.02]
[1749140924397,3.90121436,2563.4,2563.2,2.11]
[1749140924822,0.55,2563.7,2563.2,2.11]
[1749140924823,3.90099702,2563.5,2563.2,2.11]
[1749140925008,3.90084572,2563.6,2563.2,2.11]
[1749140925213,3.90051692,2563.8,2563.2,2.11]
[1749140925527,0.55,2564.1,2563.2,2.11]
[1749140925825,0.55,2564.1,2563.4,0.8106]
[1749140925826,3.90057056,2563.8,2563.4,0.8106]
[1749140926045,0.98119245,2564.5,2563.4,0.8106]
[1749140926252,3.90053378,2563.8,2563.4,0.8106]
[1749140926949,0.55,2564.3,2563.4,0.8106]
[1749140927109,3.90014189,2564.1,2563.5,3.90085139]
[1749140927313,3.90014189,2564.1,2563.5,16.0]
[1749140927709,3.90032116,2563.9,2563.5,16.0]
[1749140927917,3.9002403,2564.0,2563.5,16.0]
[1749140928202,3.90003268,2564.1,2563.5,16.0]
[1749140928416,3.90003268,2564.1,2563.5,18.0711623]
[1749140928603,3.900156,2564.0,2563.5,18.0711623]
[1749140928802,3.90004202,2564.1,2563.5,18.0711623]
[1749140928994,0.7776,2564.5,2563.6,3.90074856]
[1749140928995,11.79601914,2564.5,2563.6,3.90074856]
[1749140929196,3.90008448,2564.1,2563.6,6.56907929]
[1749140929520,3.90008448,2564.1,2563.6,2.66835606]
[1749140929722,3.90017183,2564.0,2563.6,2.66835606]
[1749140929900,3.90032999,2563.9,2563.5,16.0]
[1749140930241,3.90005956,2564.1,2563.4,4.71155749]
[1749140930242,3.90057835,2563.8,2563.4,0.8106]
[1749140930406,3.89957699,2564.4,2563.4,0.8106]
[1749140930608,3.90091671,2563.5,2563.4,0.8106]
[1749140930823,3.90091671,2563.5,2563.4,2.11]
[1749140932352,3.9011386,2563.4,2563.1,0.7853]
[1749140932582,3.90046025,2563.8,2563.2,2.11]
[1749140932845,3.900156,2564.0,2563.2,2.11]
[1749140933049,4.25868425,2564.0,2563.1,0.7853]
[1749140933254,3.90106889,2563.4,2563.1,0.7853]
[1749140933464,0.21276307,2563.9,2563.1,0.7853]
[1749140933465,3.90137328,2563.2,2563.1,0.02]
[1749140934542,4.25990153,2563.2,2563.1,0.02]
[1749140936904,4.86451655,2563.2,2563.1,0.02]
[1749140938029,0.35852825,2563.2,2563.1,0.02]
[1749140938346,4.25990153,2563.2,2563.1,0.02]
[1749140938652,0.35852825,2563.2,2563.1,0.02]
[1749140938883,4.25990153,2563.2,2563.1,0.02]
[1749140939907,0.35852825,2563.2,2563.1,0.02]
[1749140940549,4.25990153,2563.2,2563.1,0.02]
[1749140941106,0.35852825,2563.2,2563.1,0.02]
[1749140941502,0.35852825,2563.2,2563.1,2.121]
[1749140941503,4.25990153,2563.2,2563.1,2.121]
[1749140942026,0.81223929,2563.2,2563.1,2.121]
[1749140942248,4.25990153,2563.2,2563.1,2.121]
[1749140942546,0.36292139,2563.2,2563.1,2.121]
[1749140942718,0.36292139,2563.2,2563.1,0.02]
[1749140942929,4.26429467,2563.2,2563.1,0.02]
[1749140943127,4.26429467,2563.2,2563.1,2.121]
[1749140945751,0.36292139,2563.2,2563.1,2.121]
[1749140946459,4.26429467,2563.2,2563.1,2.121]
[1749140947557,4.26429467,2563.2,2563.1,0.02]
[1749140947757,4.26429467,2563.2,2563.1,2.121]
[1749140948732,4.26429467,2563.2,2563.1,0.02]
[1749140948931,11.92329467,2563.2,2563.1,0.02]
[1749140949363,12.52790969,2563.2,2563.1,0.02]
[1749140949535,12.1360407,2563.2,2563.1,0.02]
[1749140949736,12.52790969,2563.2,2563.1,0.02]
[1749140950440,11.92329467,2563.2,2563.1,0.02]
[1749140950870,4.26429467,2563.2,2563.1,0.02]
[1749140951740,4.71836291,2563.2,2563.1,0.02]
[1749140951981,4.71836592,2563.2,2563.1,0.02]
[1749140952991,4.26429467,2563.2,2563.1,0.02]
[1749140953336,5.02549467,2563.2,2563.1,0.02]
[1749140953533,5.47948368,2563.2,2563.1,0.02]
[1749140953734,5.57549467,2563.2,2563.1,0.02]
[1749140954796,6.02934849,2563.2,2563.1,0.02]
[1749140955140,5.47934849,2563.2,2563.1,0.02]
[1749140955647,5.02549467,2563.2,2563.1,0.02]
[1749140956278,4.26429467,2563.2,2563.1,0.02]
[1749140956850,3.90137328,2563.2,2563.1,0.02]
[1749140957052,0.36315578,2563.5,2563.2,3.90136915]
[1749140957261,0.36315578,2563.6,2563.1,0.02]
[1749140957563,0.21314066,2564.1,2563.2,0.792]
[1749140957564,0.3632763,2563.9,2563.2,0.792]
[1749140957802,3.90061239,2563.7,2563.2,0.792]
[1749140958004,0.3632763,2563.7,2563.2,0.792]
[1749140958209,0.3632763,2564.0,2563.3,3.90122108]
[1749140958414,0.3632763,2563.9,2563.6,16.0]
[1749140958714,4.26289143,2564.4,2563.8,19.90032461]
[1749140959019,0.3632763,2564.7,2563.9,2.101]
[1749140959185,3.89950333,2564.5,2563.9,2.101]
[1749140959380,3.89924354,2564.6,2563.9,2.101]
[1749140959678,3.89935241,2564.6,2564.0,20.68295079]
[1749140959878,3.89978578,2564.3,2564.1,2.101]
[1749140960102,3.8996611,2564.4,2564.1,2.101]
[1749140960312,3.89928656,2564.6,2564.1,2.101]
[1749140960491,3.89973493,2564.3,2564.1,2.101]
[1749140960693,3.8998518,2564.2,2564.1,2.101]
[1749140960902,3.9000039,2564.1,2564.0,0.7828]
[1749140961113,3.89964418,2564.4,2564.1,2.101]
[1749140961295,3.89913796,2564.7,2564.1,2.101]
[1749140961476,3.9000039,2564.1,2564.0,0.7828]
[1749140961681,3.9000039,2564.1,2564.0,2.8838]
[1749140961886,3.9000039,2564.1,2564.0,0.7828]
[1749140962080,3.9000039,2564.1,2564.0,2.8838]
[1749140962277,3.9000039,2564.1,2564.0,0.7828]
[1749140962505,3.9000039,2564.1,2564.0,2.8828]
[1749140962719,3.8997492,2564.3,2564.0,2.8828]
[1749140962916,3.89978049,2564.3,2564.0,2.8828]
[1749140963126,3.89963241,2564.4,2564.0,2.8828]
[1749140963322,3.89951046,2564.5,2564.0,2.8828]
[1749140963323,3.89972704,2564.3,2564.0,2.8828]
[1749140963538,0.36334888,2564.9,2564.0,2.8828]
[1749140963699,3.89934729,2564.6,2564.1,3.89999758]
[1749140963902,4.71827711,2565.0,2564.0,6.78289385]
[1749140964228,3.89939993,2564.5,2564.0,6.78289385]
[1749140964539,0.8195,2565.0,2564.0,0.7828]
[1749140964685,3.89965975,2564.4,2564.1,2.1]
[1749140964885,3.89999161,2564.2,2564.0,0.7828]
[1749140965085,3.9000039,2564.1,2564.0,0.7828]
[1749140965306,3.9000039,2564.1,2564.0,2.1]
[1749140965648,3.90029164,2564.0,2563.7,16.0]
[1749140965815,3.90038439,2563.9,2563.8,2.1]
[1749140966022,3.90023399,2564.0,2563.8,2.1]
[1749140966546,3.89962186,2564.4,2563.8,2.1]
[1749140966846,3.89994606,2564.2,2563.9,16.7634]
[1749140967347,3.89985431,2564.2,2563.9,16.7634]
[1749140967645,3.89986613,2564.2,2563.9,16.7634]
[1749140967882,3.90001263,2564.1,2563.9,16.7634]
[1749140968336,3.89958643,2564.4,2563.9,16.7634]
[1749140968536,3.90014005,2564.1,2563.9,0.7634]
[1749140968779,3.9000039,2564.1,2564.0,25.197]
[1749140969361,3.89960289,2564.4,2564.0,18.1]
[1749140969558,3.89982731,2564.3,2564.0,18.1]
[1749140969768,3.89986535,2564.2,2564.0,18.1]
[1749140969940,3.89974021,2564.3,2564.0,18.1]
[1749140970136,3.89988088,2564.2,2564.0,25.196]
[1749140970453,3.89993901,2564.2,2564.0,25.196]
[1749140970654,3.9000039,2564.1,2564.0,25.196]
[1749140970849,3.9000039,2564.1,2563.9,0.7634]
[1749140971038,3.900156,2564.0,2563.9,0.7634]
[1749140971239,3.900156,2564.0,2563.9,2.1]
[1749140971555,0.7642,2564.8,2563.9,2.1]
[1749140971755,3.9000898,2564.1,2563.9,2.1]
[1749140972084,3.900156,2564.0,2563.9,2.1]
[1749140972283,3.89991567,2564.2,2563.9,2.1]
[1749140972442,3.8998547,2564.2,2563.9,2.1]
[1749140972776,3.89944376,2564.5,2563.9,2.1]
[1749140972986,0.7642,2564.8,2563.9,18.1]
[1749140973191,3.89968271,2564.4,2564.0,7.094]
[1749140973557,3.89971855,2564.3,2564.0,7.094]
[1749140973956,3.89927786,2564.6,2564.0,7.094]
[1749140974489,3.89976438,2564.3,2564.0,7.094]
[1749140974686,3.89956462,2564.4,2564.0,7.094]
[1749140974986,3.89976189,2564.3,2564.1,0.7695]
[1749140975485,3.89878749,2564.9,2564.1,0.7695]
[1749140975786,3.89976815,2564.3,2564.1,0.7695]
[1749140975987,3.8998518,2564.2,2564.1,0.7695]
[1749140976190,3.8998518,2564.2,2564.1,7.8615]
[1749140976855,3.8998518,2564.2,2564.1,0.7695]
[1749140977057,3.8998518,2564.2,2564.1,2.09]
[1749140980003,3.900156,2564.0,2563.9,0.7975]
[1749140980207,3.8998518,2564.2,2564.1,2.09]
[1749140981936,3.900156,2564.0,2563.9,0.7975]
[1749140982291,3.900156,2564.0,2563.9,2.8875]
[1749140982496,3.89955339,2564.4,2563.9,2.8875]
[1749140982497,0.7754,2564.5,2563.9,2.8875]
[1749140982708,3.89995435,2564.2,2563.9,0.7975]
[1749140982911,3.89925751,2564.6,2563.9,0.7975]
[1749140982912,3.89976582,2564.3,2564.0,2.09]
[1749140983108,3.89971472,2564.3,2564.0,2.09]
[1749140983327,3.89956158,2564.4,2564.0,2.09]
[1749140983737,3.89946696,2564.5,2564.0,5.99015116]
[1749140984039,3.89887963,2564.9,2564.4,3.89945821]
[1749140984253,3.89833151,2565.2,2564.3,16.7942]
[1749140984415,3.89914633,2564.7,2564.4,25.178]
[1749140984841,0.55,2565.2,2564.5,2.09]
[1749140985041,3.8990832,2564.8,2564.5,2.09]
[1749140985354,3.89901275,2564.8,2564.5,2.09]
[1749140985714,3.89882085,2564.9,2564.6,2.09]
[1749140986748,3.89817955,2565.3,2564.6,2.09]
[1749140986958,3.89859564,2565.1,2564.7,0.786]
[1749140987163,3.89840425,2565.2,2564.7,13.10501116]
[1749140987342,3.89831574,2565.3,2564.7,13.10502483]
[1749140987540,3.8975759,2565.7,2564.8,3.89893522]
[1749140987914,0.36317331,2565.7,2564.9,10.98374472]
[1749140988033,0.7837,2565.8,2564.9,10.98374472]
[1749140988034,3.89820538,2565.3,2564.9,7.085]
[1749140988231,0.36317331,2565.7,2565.0,0.7883]
[1749140988445,3.89848348,2565.1,2565.0,0.7883]
[1749140988657,3.89848348,2565.1,2565.0,2.8783]
[1749140989246,3.89848348,2565.1,2565.0,2.09]
[1749140989573,3.89893948,2564.8,2564.7,8.42]
[1749140989737,3.89885702,2564.9,2564.8,2.09]
[1749140990134,0.55,2565.2,2564.8,2.09]
[1749140990338,3.89848348,2565.1,2564.8,2.9]
[1749140990738,3.89790514,2565.5,2564.8,2.9]
[1749140990933,3.89857732,2565.1,2564.8,2.9]
[1749140991134,3.89856958,2565.1,2564.8,2.9]
[1749140991541,3.8986463,2565.0,2564.8,2.9]
[1749140992072,3.89874782,2565.0,2564.8,0.81]
[1749140992273,3.89893948,2564.8,2564.7,8.42]
[1749140992475,3.89893948,2564.8,2564.7,10.509]
[1749140992862,3.89876728,2565.0,2564.7,10.509]
[1749140993069,0.55,2565.2,2564.7,10.509]
[1749140993269,0.55,2565.3,2564.7,10.509]
[1749140993473,3.89877248,2565.0,2564.7,10.509]
[1749140993677,3.89893948,2564.8,2564.7,10.509]
[1749140994444,4.44830633,2565.3,2564.7,10.509]
[1749140994445,3.89886937,2564.9,2564.7,10.509]
[1749140994646,3.89893948,2564.8,2564.7,10.509]
[1749140995157,3.89893948,2564.8,2564.7,8.42]
[1749140995484,3.89893948,2564.8,2564.7,10.509]
[1749140995700,3.89893948,2564.8,2564.7,8.42]
[1749140995991,3.89893948,2564.8,2564.7,10.509]
[1749140997173,3.89893948,2564.8,2564.7,8.42]
[1749140997379,3.89893948,2564.8,2564.7,10.509]
[1749141000352,3.89893948,2564.8,2564.7,8.42]
[1749141000795,3.89893948,2564.8,2564.7,10.509]
[1749141002093,3.89893948,2564.8,2564.7,10.498]
[1749141002251,3.900156,2564.0,2563.9,0.7708]
[1749141002450,3.90061239,2563.7,2563.6,0.7708]
[1749141003008,8.05938428,2564.6,2563.6,0.7708]
[1749141003209,3.89912608,2564.7,2564.0,4.66932517]
[1749141003421,3.89912608,2564.7,2564.2,3.89978732]
[1749141003422,3.89912518,2564.7,2564.2,3.89978732]
[1749141003752,3.89878747,2564.9,2564.1,9.153]
[1749141003913,3.89894907,2564.8,2564.0,0.7693]
[1749141004098,3.89996347,2564.2,2564.1,9.152]
[1749141004293,3.89894907,2564.8,2564.1,9.152]
[1749141004499,3.89923024,2564.7,2564.2,3.8997813]
[1749141004847,3.89851475,2565.1,2564.5,3.89932696]
[1749141005060,3.89850908,2565.1,2564.6,10.97313914]
[1749141005200,17.07405471,2565.4,2564.7,4.67526804]
[1749141005201,3.89808648,2565.4,2564.7,4.67526804]
[1749141005550,1.26077207,2565.8,2565.0,3.89854964]
[1749141005551,3.89794433,2565.5,2565.0,3.89854964]
[1749141005707,3.89779528,2565.6,2565.1,7.073]
[1749141005907,3.89779528,2565.6,2565.0,4.66034964]
[1749141005908,3.89788142,2565.5,2565.0,9.1808]
[1749141006108,3.89819484,2565.3,2565.1,7.073]
[1749141006704,3.89835242,2565.2,2565.0,9.1808]
[1749141006908,3.89762397,2565.7,2565.1,9.151]
[1749141007130,3.8981098,2565.4,2565.1,9.151]
[1749141007457,3.89817955,2565.3,2565.2,9.15]
[1749141007663,3.89817955,2565.3,2565.2,2.078]
[1749141007808,3.89817955,2565.3,2565.0,8.419]
[1749141007809,3.89848348,2565.1,2565.0,8.419]
[1749141008109,0.7956,2565.5,2565.0,10.497]
[1749141008110,1.15936656,2565.5,2565.0,10.497]
[1749141008306,3.89848348,2565.1,2565.0,10.497]
[1749141008559,3.89848348,2565.1,2565.0,8.419]
[1749141008711,3.89848348,2565.1,2565.0,10.497]
[1749141008911,3.89841146,2565.2,2565.0,10.497]
[1749141009232,3.89848348,2565.1,2565.0,10.497]
[1749141010154,1.07354336,2565.7,2565.0,10.497]
[1749141010449,3.89812376,2565.4,2565.0,10.497]
[1749141010875,3.89812376,2565.4,2564.8,3.89885834]
[1749141011179,3.89812376,2565.4,2564.0,0.8198]
[1749141011180,3.90009954,2564.1,2564.0,0.8198]
[1749141011323,4.67623607,2564.8,2564.0,0.8198]
[1749141011324,0.7772,2564.8,2564.0,0.8198]
[1749141011635,3.89922106,2564.7,2564.2,3.89981507]
[1749141011961,3.89887267,2564.9,2564.4,0.7583]
[1749141012164,3.8990302,2564.8,2564.5,7.069]
[1749141012318,3.89909151,2564.7,2564.6,2.078]
[1749141012524,3.89900347,2564.8,2564.6,2.078]
[1749141012826,3.89909151,2564.7,2564.6,2.078]
[1749141013062,3.89906787,2564.8,2564.6,2.078]
[1749141013369,3.89909151,2564.7,2564.6,2.078]
[1749141013658,3.89899566,2564.8,2564.6,2.078]
[1749141014026,3.89909151,2564.7,2564.6,2.078]
[1749141014359,3.89867565,2565.0,2564.4,0.7583]
[1749141014561,3.89848348,2565.1,2564.6,2.078]
[1749141014728,3.89869275,2565.0,2564.6,2.078]
[1749141014925,3.89877169,2565.0,2564.6,2.078]
[1749141015127,3.89889229,2564.9,2564.6,2.078]
[1749141015527,3.89834432,2565.2,2564.6,18.078]
[1749141015764,3.89872286,2565.0,2564.6,18.078]
[1749141015972,3.89921608,2564.7,2564.4,16.7583]
[1749141016125,3.89893948,2564.8,2564.7,9.145]
[1749141016456,5.74965004,2565.4,2564.4,16.7583]
[1749141016457,0.55,2565.1,2564.4,16.7583]
[1749141016626,3.89930608,2564.6,2564.5,2.078]
[1749141016825,3.89930608,2564.6,2564.4,16.7583]
[1749141017022,3.89939559,2564.5,2564.4,16.7583]
[1749141017285,3.89939559,2564.5,2564.4,25.9023]
[1749141017490,3.89933365,2564.6,2564.4,25.9023]
[1749141017828,9.86562129,2564.5,2563.9,0.8101]
[1749141018157,3.8998596,2564.2,2564.0,2.078]
[1749141018356,0.798,2564.6,2564.0,2.078]
[1749141018558,3.89939915,2564.5,2564.1,7.065]
[1749141018764,0.36382713,2564.9,2564.3,0.7765]
[1749141018928,0.71922496,2565.4,2564.5,9.86562129]
[1749141019122,4.25332537,2565.4,2564.8,3.89881223]
[1749141019326,3.89819564,2565.3,2564.9,11.2735]
[1749141019708,4.25336297,2565.4,2564.9,11.2735]
[1749141020045,0.35528013,2565.4,2564.9,15.17220115]
[1749141020209,4.25336165,2565.4,2564.9,11.2735]
[1749141020409,3.89818327,2565.3,2564.9,11.2735]
[1749141021141,4.25332173,2565.4,2564.9,11.2735]
[1749141021546,0.35528013,2565.4,2564.9,15.17227173]
[1749141021907,0.35528013,2565.4,2565.1,4.68548706]
[1749141022211,0.35528013,2565.4,2565.3,20.67937955]
[1749141022813,0.35528013,2565.4,2565.3,16.7812]
[1749141023007,0.35528013,2565.4,2565.3,2.8592]
[1749141023213,0.35528013,2565.4,2565.3,9.9212]
[1749141023408,0.35528013,2565.4,2565.3,2.8592]
[1749141023610,0.35528013,2565.4,2565.3,9.9212]
[1749141024004,0.35528013,2565.4,2565.3,0.7812]
[1749141024220,0.35528013,2565.4,2565.3,9.9212]
[1749141025225,0.35528013,2565.4,2565.3,0.7812]
[1749141025422,0.35528013,2565.4,2565.3,13.81837955]
[1749141025625,0.35528013,2565.4,2565.3,0.7812]
[1749141025813,0.35528013,2565.4,2565.3,13.81837955]
[1749141026356,0.35528013,2565.4,2565.3,29.81837955]
[1749141027311,0.02,2565.9,2565.8,4.6984199]
[1749141027513,0.02,2565.9,2565.8,37.62404119]
[1749141027949,0.02,2565.9,2565.8,38.17404119]
[1749141028113,0.35496249,2566.0,2565.9,19.89726801]
[1749141028308,0.02,2566.9,2565.9,0.55]
[1749141028624,0.02,2566.9,2566.1,4.69789751]
[1749141028625,3.89613905,2566.7,2566.1,4.69789751]
[1749141028824,3.89659901,2566.4,2566.2,26.494]
[1749141029036,3.89659901,2566.4,2566.2,33.551]
[1749141029336,3.89640088,2566.5,2566.3,2.078]
[1749141030047,3.89623655,2566.6,2566.3,2.078]
[1749141030346,0.7761,2566.8,2566.2,24.416]
[1749141030560,3.89650872,2566.4,2566.2,24.416]
[1749141030849,3.89650872,2566.4,2565.7,0.7761]
[1749141031050,0.55,2566.6,2565.8,2.078]
[1749141031255,3.89682663,2566.2,2565.8,18.078]
[1749141031553,3.8968873,2566.2,2565.9,2.078]
[1749141031746,3.89697884,2566.1,2565.9,2.078]
[1749141031949,10.64172129,2566.8,2565.9,2.078]
[1749141031950,0.7761,2566.8,2565.9,2.078]
[1749141032150,3.89611783,2566.7,2566.0,19.8969775]
[1749141032323,0.02,2566.9,2566.2,16.0]
[1749141032523,0.02,2566.9,2566.4,3.89640162]
[1749141032723,0.02,2566.9,2566.5,3.896354]
[1749141033034,0.02,2566.9,2566.4,3.89650386]
[1749141033035,0.02,2566.9,2566.6,9.122]
[1749141033237,0.02,2566.9,2566.7,8.415]
[1749141033653,0.02,2566.9,2566.8,2.067]
[1749141034372,0.02,2566.9,2566.8,2.066]
[1749141034585,0.02,2566.9,2566.8,22.73020151]
[1749141035154,0.02,2566.9,2566.7,8.415]
[1749141035352,3.89590151,2566.8,2566.7,8.415]
[1749141035650,3.91584022,2566.9,2566.7,10.481]
[1749141035817,3.89590151,2566.8,2566.7,10.481]
[1749141037385,0.02,2566.9,2566.7,10.481]
[1749141038261,0.02,2566.9,2566.7,8.415]
[1749141038461,3.89590151,2566.8,2566.7,8.415]
[1749141038776,4.59590151,2566.8,2566.7,10.481]
[1749141038976,4.59590151,2566.8,2566.7,8.415]
[1749141039174,0.7,2566.8,2566.7,10.481]
[1749141039991,4.59590151,2566.8,2566.7,10.481]
[1749141040193,0.7,2566.8,2566.7,10.481]
[1749141040689,0.7,2566.8,2566.7,31.13565329]
[1749141040839,0.02,2566.9,2566.7,31.13558375]
[1749141041678,0.02,2566.9,2566.8,3.89590151]
[1749141042266,0.02,2566.9,2566.8,29.7615228]
[1749141042952,0.02,2566.9,2566.8,18.066]
[1749141043287,3.91577852,2566.9,2566.8,9.113]
[1749141043459,3.89590151,2566.8,2566.7,8.415]
[1749141043659,3.89590151,2566.8,2566.7,10.481]
[1749141044278,4.61582617,2566.9,2566.7,10.481]
[1749141044468,4.61581419,2566.9,2566.7,8.415]
[1749141044662,3.89590151,2566.8,2566.7,8.415]
[1749141044869,4.61583648,2566.9,2566.8,2.066]
[1749141045266,4.61574973,2566.9,2566.8,2.066]
[1749141045644,0.72,2566.9,2566.8,2.066]
[1749141046071,0.02,2566.9,2566.8,2.066]
[1749141046382,3.91574973,2566.9,2566.7,8.415]
[1749141046582,0.02,2566.9,2566.8,2.066]
[1749141047086,3.91574973,2566.9,2566.8,2.066]
[1749141047246,0.02,2566.9,2566.8,2.066]
[1749141047886,3.91574973,2566.9,2566.8,2.066]
[1749141048461,0.72,2566.9,2566.8,2.066]
[1749141048682,0.72,2566.9,2566.7,8.415]
[1749141048848,3.89590151,2566.8,2566.7,15.459]
[1749141049046,3.89590151,2566.8,2566.7,8.415]
[1749141049378,4.61577202,2566.9,2566.7,10.481]
[1749141049379,0.72,2566.9,2566.7,10.481]
[1749141049783,3.89590151,2566.8,2566.7,8.415]
[1749141050082,0.72,2566.9,2566.7,10.481]
[1749141050083,4.61586708,2566.9,2566.7,10.481]
[1749141050283,3.89590151,2566.8,2566.7,10.481]
[1749141050780,4.61583377,2566.9,2566.7,10.481]
[1749141050985,3.89590151,2566.8,2566.7,10.481]
[1749141051386,4.61582541,2566.9,2566.7,10.481]
[1749141051585,0.72,2566.9,2566.7,10.481]
[1749141051789,3.89590151,2566.8,2566.7,8.415]